Cogmind - Beta 13 @@@ ROGUE MODE // 2024.04.07 @ 22:09:06 Player: jemps Result: Self-destructed Performance ------------- Evolutions (2) 1000 Regions Visited (6) 1200 Robots Destroyed (10) 50 Value Destroyed (94) 94 Prototype IDs (2) 40 Alien Tech Used (0) 0 Bonus (300) 300 TOTAL SCORE: 2684 Bonus ------- Aligned with FarCom 300 Cogmind --------- Core Integrity 536/550 Matter 232/600 Energy 100/100 System Corruption 1% Temperature Cool (9) Movement Core (200) Ox3 Location -8/Materials Parts ------- > --- POWER (1) -------- (None) > --- PROPULSION (4) --- Advanced Treads > --- UTILITY (4) ------ Large Matter Pod Large Matter Pod Signal Interpreter System Shield > --- WEAPON (2) ------- High-powered Shotgun High-powered Shotgun > --- INVENTORY (5) ---- Large Matter Pod (0) Hacking Suite AWS/Thermal Peak State ------------ > --- POWER ------------ Light Ion Engine > --- PROPULSION ------- Cesium-ion Thruster Cesium-ion Thruster Cesium-ion Thruster Cesium-ion Thruster > --- UTILITY ---------- Medium Storage Unit Visual Processing Unit > --- WEAPON ----------- AWS/Thermal > --- INVENTORY -------- Light Ion Engine Armored Wheel Sensor Array Experimental Sensor Array Signal Interpreter Improved Terrain Scanner System Shield Grenade Launcher Datajack Mining Laser [Rating: 34] Favorites ----------- Power Light Ion Engine Engine Light Ion Engine Propulsion Cesium-ion Thruster Treads Advanced Treads Leg Aluminum Leg Wheel Wheel Hover Unit Hover Unit Flight Unit Cesium-ion Thruster Utility Medium Storage Unit Device Seismic Detector Storage Medium Storage Unit Processor Visual Processing Unit Hackware System Shield Weapon Medium Laser Energy Gun Medium Laser Ballistic Gun Assault Rifle Launcher Grenade Launcher Special Weapon Mining Laser Special Melee Weapon Datajack Build | -11 -10 -9 -9 -9 -8 -8 ------- Run | Yrd Mat Mat Min Exi Min Mat Slots Evolved 4 | . . 2 . . . 2 Power . | . . . . . . . Propulsion 2 | . . 2 . . . . Utility 2 | . . . . . . 2 Weapon . | . . . . . . . Parts Attached 61 | 13 18 10 1 6 5 8 Power 4 | 2 1 . . . 1 . Engine 4 | 2 1 . . . 1 . Core . | . . . . . . . Reactor . | . . . . . . . Propulsion 19 | 6 4 4 . . 4 1 Treads 2 | 1 . . . . 1 . Leg 1 | 1 . . . . . . Wheel 6 | 4 1 . . . 1 . Hover 3 | . 2 . . . . 1 Flight 7 | . 1 4 . . 2 . Utility 11 | 2 5 . . . . 4 Device 4 | 1 3 . . . . . Storage 4 | 1 1 . . . . 2 Processor 2 | . 1 . . . . 1 Hackware 1 | . . . . . . 1 Protection . | . . . . . . . Artifact . | . . . . . . . Weapon 27 | 3 8 6 1 6 . 3 Energy Gun 13 | 1 5 3 . 3 . 1 Energy Cannon . | . . . . . . . Ballistic Gun 5 | 2 . . . 1 . 2 Ballistic Cannon . | . . . . . . . Launcher 1 | . . . . 1 . . Special Weapon 4 | . 2 2 . . . . Impact Weapon . | . . . . . . . Slashing Weapon . | . . . . . . . Piercing Weapon . | . . . . . . . Special Melee Weapon 4 | . 1 1 1 1 . . Unidentified Prototypes 2 | . . . . 2 . . Parts Lost 8 | . 1 . . . 4 3 Power 1 | . . . . . . 1 Propulsion 6 | . . . . . 4 2 Utility 1 | . 1 . . . . . Weapon . | . . . . . . . Highest Loss Streak 3 | . 1 . . . 2 3 To Critical Strikes . | . . . . . . . Average Slot Usage (%) 94 | . 98 100 100 96 82 63 Engine 11 | . 14 11 11 11 10 6 Wheel 9 | . 22 . . . . . Hover 2 | . 5 . . . . 1 Flight 23 | . . 43 44 44 34 6 Device 3 | . 9 . . . . . Storage 11 | . 14 11 11 11 8 12 Processor 7 | . 3 11 11 11 8 7 Energy Gun 12 | . 18 16 11 6 . . Ballistic Gun 3 | . 7 . . . . 13 Launcher 2 | . . . . 3 8 . Special Weapon 1 | . . 2 . . . . Special Melee Weapon 3 | . . 3 11 8 8 . Naked Turns 28 | . . . . . 28 . Heaviest Build 23 | 15 20 17 17 23 17 15 Greatest Support 26 | 26 20 20 20 20 22 22 Greatest Overweight (x) 5 | 4 2 3 . 1 5 3 Average Overweight (x) . | . . . . . . . Largest Inventory Capacity 10 | 8 10 10 10 10 10 5 Average Capacity 9 | 7 9 10 10 10 8 5 Most Carried 10 | 8 10 10 10 10 10 4 Average Carried 8 | 5 8 10 9 9 8 3 Final Capacity 10 | 8 10 10 10 10 5 5 Final Carried 10 | 8 10 10 10 10 4 4 Class Distribution -------------------- 53% | Mutant 46% | Sprinter Dominant Class ---------------- Mutant | -10/Materials Sprinter | -9/Materials Sprinter | -9/Mines Sprinter | -9/Exiles Sprinter | -8/Mines Sprinter | -8/Materials Resources | -11 -10 -9 -9 -9 -8 -8 ----------- Run | Yrd Mat Mat Min Exi Min Mat Matter Collected 752 | 257 262 90 27 . 101 15 Remotely . | . . . . . . . Salvage Created 347 | 37 295 . . . . 15 Parts 23 | 6 15 . . . . 2 Haulers Intercepted . | . . . . . . . Recyclers Shooed 5 | 2 3 . . . . . Parts Field Recycled . | . . . . . . . Retrieved Matter . | . . . . . . . Parts Self-Destructed . | . . . . . . . Prevented . | . . . . . . . Kills | -11 -10 -9 -9 -9 -8 -8 ------- Run | Yrd Mat Mat Min Exi Min Mat Combat Hostiles Destroyed 3 | . 3 . . . . . Guns 3 | . 3 . . . . . Classes Destroyed 5 | 1 3 . . . . 1 Tunneler 2 | 2 . . . . . . Recycler 3 | . 3 . . . . . Operator 1 | . . . . . . 1 Watcher 1 | . 1 . . . . . Swarmer 3 | . 3 . . . . . Best Kill Streak 4 | 1 4 . . . . 1 Combat Bots Only 3 | . 3 . . . . . Max Kills in Single Turn 1 | 1 1 . . . . 1 Gunslinging . | . . . . . . . Exploded . | . . . . . . . Melee . | . . . . . . . Uniques/NPCs Destroyed . | . . . . . . . Combat | -11 -10 -9 -9 -9 -8 -8 -------- Run | Yrd Mat Mat Min Exi Min Mat Hostile Shots Fired 67 | . 13 2 4 . 31 17 Missed 19 | . 4 1 1 . 9 4 Damage Taken 707 | . 78 14 26 . 367 222 Core 200 | . 18 14 . . 154 14 Absorbed by Shields . | . . . . . . . Core Remaining (%) 83 | 100 92 . . . 58 . Volleys Fired 43 | 4 19 19 . . . 1 Largest 2 | 2 2 2 . . . 2 Hottest 100 | 40 100 100 . . . 50 Shots Fired 65 | 8 34 21 . . . 2 Gun 44 | 8 30 4 . . . 2 Cannon . | . . . . . . . Launcher . | . . . . . . . Special 21 | . 4 17 . . . . Kinetic 10 | 8 . . . . . 2 Thermal 55 | . 34 21 . . . . Explosive . | . . . . . . . Electromagnetic . | . . . . . . . Robot Hit Streak 10 | 2 10 3 . . . 1 Robot Miss Streak 4 | 1 1 2 . . . 4 Penetration Max . | . . . . . . . Secondary Targets . | . . . . . . . Shots Hit Robots 37 | 4 20 9 2 . 1 1 Core Hits 12 | 2 9 . . . . 1 Critical Kills . | . . . . . . . Critical Parts Destroyed . | . . . . . . . Critical Strikes 4 | . 3 1 . . . . Burn 4 | . 3 1 . . . . Melee Attacks 10 | . . 7 2 . 1 . Impact . | . . . . . . . Slashing . | . . . . . . . Piercing . | . . . . . . . Sneak Attacks 9 | . . 6 2 . 1 . Combat Hostiles . | . . . . . . . Follow-up Attacks . | . . . . . . . Damage Inflicted 347 | 56 249 24 . . . 18 Guns 347 | 56 249 24 . . . 18 Cannons . | . . . . . . . Explosions . | . . . . . . . Melee . | . . . . . . . Ramming . | . . . . . . . Kinetic 74 | 56 . . . . . 18 Thermal 273 | . 249 24 . . . . Explosive . | . . . . . . . Electromagnetic . | . . . . . . . Impact . | . . . . . . . Slashing . | . . . . . . . Piercing . | . . . . . . . Highest Corruption 4 | . . . . . 4 1 Average Corruption 3 | . . . . . 4 1 Corruption Purged . | . . . . . . . Corruption Blocked . | . . . . . . . Effects 5 | . . . . . 4 1 Matter Fused 2 | . . . . . 1 1 Heat Flow Errors 1 | . . . . . 1 . Parts Rejected 1 | . . . . . 1 . Data Loss (minor) 1 | . . . . . 1 . Overload Shots . | . . . . . . . Overflow Damage . | . . . . . . . Projectiles . | . . . . . . . Explosions . | . . . . . . . Melee . | . . . . . . . Knockbacks . | . . . . . . . Impact . | . . . . . . . Kinetic . | . . . . . . . Secondary . | . . . . . . . Self-Inflicted Damage . | . . . . . . . Shots . | . . . . . . . Rammed 1 | . . . . . 1 . Targets Rammed 1 | . . . . . 1 . Kicked . | . . . . . . . Crushed . | . . . . . . . Highest Temperature 269 | . 136 210 6 . 269 . Average Temperature 68 | . 50 76 4 . 114 . Received Heat Transfer 354 | . 12 9 9 . 207 117 Effects 1 | . . 1 . . . . Interference 1 | . . 1 . . . . Siege Activations . | . . . . . . . Robots Corrupted . | . . . . . . . Combat Hostiles . | . . . . . . . Parts Fried . | . . . . . . . Impact Corruptions . | . . . . . . . Robots Melted . | . . . . . . . Combat Hostiles . | . . . . . . . Parts Melted . | . . . . . . . Heat Transferred 1110 | . 962 148 . . . . Parts Sabotaged . | . . . . . . . Parts Stolen . | . . . . . . . Parts Stripped . | . . . . . . . Power Chain Reactions . | . . . . . . . Alert | -11 -10 -9 -9 -9 -8 -8 ------- Run | Yrd Mat Mat Min Exi Min Mat Peak Influence 285 | 10 101 70 57 . 285 127 Initial 107 | . 6 21 27 . . 107 Average 51 | 2 33 27 28 . 127 111 Maximum Alert Level 1 | . . . . . 1 . Low Security (%) 91 | 100 100 100 100 . 58 100 Level 1 8 | . . . . . 41 . Level 2 . | . . . . . . . Level 3 . | . . . . . . . Level 4 . | . . . . . . . Level 5 . | . . . . . . . High Security . | . . . . . . . Max Security . | . . . . . . . Squads Dispatched 1 | . . . . . . 1 Investigation 1 | . . . . . . 1 Extermination . | . . . . . . . Reinforcement . | . . . . . . . Assault . | . . . . . . . Garrison . | . . . . . . . Intercept . | . . . . . . . Searches Triggered . | . . . . . . . Construction Impeded . | . . . . . . . Haulers Reinforced . | . . . . . . . Active Scanning Responses . | . . . . . . . Cargo Convoy Interrupts . | . . . . . . . Stealth | -11 -10 -9 -9 -9 -8 -8 --------- Run | Yrd Mat Mat Min Exi Min Mat Distress Signals 2 | . . . . . 1 1 Communications Jammed . | . . . . . . . Distress Signals . | . . . . . . . Times Spotted 43 | . 5 5 6 . 22 5 Peak Tracking Total 9 | . 3 5 6 . 9 6 Tactical Retreats 8 | . . . 1 . 7 . Traps | -11 -10 -9 -9 -9 -8 -8 ------- Run | Yrd Mat Mat Min Exi Min Mat Traps Triggered . | . . . . . . . Indirectly . | . . . . . . . Trap Hack Attempts . | . . . . . . . Triggered . | . . . . . . . Disarmed . | . . . . . . . Reprogrammed . | . . . . . . . Reused . | . . . . . . . Traps Extracted . | . . . . . . . Installed . | . . . . . . . Triggered . | . . . . . . . Machines | -11 -10 -9 -9 -9 -8 -8 ---------- Run | Yrd Mat Mat Min Exi Min Mat Machines Disabled . | . . . . . . . Max in Single Turn . | . . . . . . . Machines Repaired . | . . . . . . . Machines Dismantled . | . . . . . . . Machines Sabotaged . | . . . . . . . Overloaded Fab Kills . | . . . . . . . Hacking | -11 -10 -9 -9 -9 -8 -8 --------- Run | Yrd Mat Mat Min Exi Min Mat Machines Accessed 9 | . 4 3 . 1 . 1 Terminals 7 | . 4 2 . . . 1 Fabricators . | . . . . . . . Repair Stations . | . . . . . . . Recycling Units . | . . . . . . . Scanalyzers 1 | . . 1 . . . . Garrison Access . | . . . . . . . Total Hacks 33 | . 12 17 . 1 . 3 Successful 24 | . 7 15 . 1 . 1 Failed 9 | . 5 2 . . . 2 Catastrophic 3 | . 1 1 . . . 1 Database Lockouts . | . . . . . . . Manual 14 | . 7 3 . 2 . 2 Terminals 20 | . 12 5 . . . 3 Fabricators . | . . . . . . . Repair Stations . | . . . . . . . Recycling Units . | . . . . . . . Scanalyzers 12 | . . 12 . . . . Garrison Access . | . . . . . . . Terminal Hacks 12 | . 7 3 . 1 . 1 Record 1 | . . . . 1 . . Terminal Index 2 | . 1 1 . . . . Locate Traps 1 | . 1 . . . . . Registered Components 3 | . 2 . . . . 1 Zone Layout 5 | . 3 2 . . . . Fabricator Hacks . | . . . . . . . Repair Station Hacks . | . . . . . . . Recycling Unit Hacks . | . . . . . . . Scanalyzer 12 | . . 12 . . . . Insert Component 6 | . . 6 . . . . Analyze 6 | . . 6 . . . . Garrison Access Hacks . | . . . . . . . Unauthorized Hacks . | . . . . . . . Terminals . | . . . . . . . Fabricators . | . . . . . . . Repair Stations . | . . . . . . . Recycling Units . | . . . . . . . Scanalyzers . | . . . . . . . Garrison Access . | . . . . . . . Data Cores Recovered 1 | . . . . . . 1 Used 1 | . . . . . . 1 Hacking Detections 8 | . 4 3 . . . 1 Full Trace Events 1 | . . . . . . 1 Feedback Events 1 | . . . . . . 1 Corruption 1 | . . . . . . 1 Feedback Blocked . | . . . . . . . Robot Schematics Acquired . | . . . . . . . Robots Built . | . . . . . . . Authchips . | . . . . . . . Time . | . . . . . . . Total Robot Build Rating . | . . . . . . . Part Schematics Acquired 6 | . . 6 . . . . Parts Built . | . . . . . . . Authchips . | . . . . . . . Time . | . . . . . . . Total Part Build Rating . | . . . . . . . Parts Repaired . | . . . . . . . Time . | . . . . . . . Parts Recycled . | . . . . . . . Recycled Matter . | . . . . . . . Retrieved Matter . | . . . . . . . Retrieved Components . | . . . . . . . Parts Scanalyzed 6 | . . 6 . . . . Part Schematics Acquired 6 | . . 6 . . . . Parts Damaged . | . . . . . . . Bothacking | -11 -10 -9 -9 -9 -8 -8 ------------ Run | Yrd Mat Mat Min Exi Min Mat Used RIF Installer . | . . . . . . . Robots Hacked 3 | . . 3 . . . . Non-combat 3 | . . 3 . . . . Combat . | . . . . . . . Robot Hacks Applied 4 | . . 4 . . . . parse_system 2 | . . 2 . . . . no_distress 1 | . . 1 . . . . find_recycling 1 | . . 1 . . . . Relay Couplers Released . | . . . . . . . Fabnet Peak Effective % . | . . . . . . . Robots Rewired . | . . . . . . . Allies Hacked . | . . . . . . . Hacks Repelled . | . . . . . . . Allies | -11 -10 -9 -9 -9 -8 -8 -------- Run | Yrd Mat Mat Min Exi Min Mat Total Allies 3 | . . . 3 . . . Largest Group 3 | . . . 3 . . . Highest-Rated Group 40 | . . . 40 . . . Highest-Rated Ally 16 | . . . 16 . . . Total Orders 1 | . . . 1 . . . ROAM 1 | . . . 1 . . . Ally Attacks . | . . . . . . . Total Damage . | . . . . . . . Kills . | . . . . . . . Allies Corrupted . | . . . . . . . Allies Melted . | . . . . . . . Intel | -11 -10 -9 -9 -9 -8 -8 ------- Run | Yrd Mat Mat Min Exi Min Mat Robot Analysis Total . | . . . . . . . Derelict Logs Recovered 1 | . . . 1 . . . Drone Launches . | . . . . . . . Drone Recoveries . | . . . . . . . Exploration | -11 -10 -9 -9 -9 -8 -8 ------------- Run | Yrd Mat Mat Min Exi Min Mat Turns Passed 1932 | 124 715 500 66 89 380 58 Spaces Moved 2005 | 81 389 248 219 261 772 35 Core 73 | 10 . . . . 59 4 Treads 12 | . . . . . 2 10 Legs 3 | 3 . . . . . . Wheels 384 | 68 300 . . . 16 . Hover 99 | . 89 4 . . . 6 Flight 1434 | . . 244 219 261 695 15 Fastest Speed 26 | 50 80 26 26 26 26 55 Average Speed 48 | 96 88 29 26 28 38 117 Slowest Speed 300 | 250 185 275 26 106 300 200 Overloaded Moves . | . . . . . . . Propulsion Burnouts . | . . . . . . . Robots Hopped 11 | . . 1 4 . 6 . Cave-ins Triggered . | . . . . . . . Exploration Rate (%) 40 | 5 46 22 50 65 86 6 Regions Visited 6 Branch Regions 3 Pre-discovered Areas . | . . . . . . . Known Exits Taken . | . . . . . . . Unknown Exits Taken 6 | 1 1 1 1 1 1 . Scrap Searched 2 | . . . 1 . 1 . Spaces Dug 21 | . 4 17 . . . . Terrain Destroyed 21 | . 4 17 . . . . Melee . | . . . . . . . Projectile 21 | . 4 17 . . . . AOE . | . . . . . . . Terrain Rammed . | . . . . . . . Walls Destroyed . | . . . . . . . Machines Disabled . | . . . . . . . Actions | -11 -10 -9 -9 -9 -8 -8 --------- Run | Yrd Mat Mat Min Exi Min Mat Total 2830 | 114 713 611 223 276 845 48 Wait 670 | 2 271 323 . . 73 1 Move 1981 | 80 388 245 211 260 762 35 Hop 7 | . . 1 3 . 3 . Pick Up 29 | 12 8 2 3 2 . 2 Fast Attach 23 | 4 3 4 . 4 3 5 Attach 11 | 3 1 . . 2 2 3 Detach 2 | . . . . 1 . 1 Swap 27 | 6 14 6 1 . . . Drop 26 | 3 9 4 3 7 . . Fire 43 | 4 19 19 . . . 1 Melee 10 | . . 7 2 . 1 . Ram 1 | . . . . . 1 . Kick . | . . . . . . . Crush . | . . . . . . . Escape Stasis . | . . . . . . . Rewire . | . . . . . . . Trap . | . . . . . . . Miscellaneous . | . . . . . . . Route ------- -11/Scrapyard -10/Materials -9/Materials (discovered 2 exits: [*Min x2]) -9/Mines -9/Exiles (discovered 2 exits: [*Min x2]) -8/Mines -8/Materials (discovered 1 exit: Fac) History --------- Turn | Location | Event 27 | -11/Scrapyard | Discovered new exit (range 15) 125 | -11/Scrapyard | Entered Materials 312 | -10/Materials | Build established: Mutant 837 | -10/Materials | Discovered new exit (range 4) 840 | -10/Materials | Entered another Materials area 840 | -9/Materials | Evolved 2 slots: Propulsion x2 1146 | -9/Materials | Build established: Sprinter 1278 | -9/Materials | Discovered new exit (range 6) 1338 | -9/Materials | Discovered new exit (range 8) 1340 | -9/Materials | Entered Mines 1360 | -9/Mines | Assisted by bots powering up and referring to "LRC-V3" 1388 | -9/Mines | Learned location of 1 exit from Materials 1394 | -9/Mines | Found a damaged Exp. Sensor Array with a note attached 1395 | -9/Mines | Found Prototype Device 1405 | -9/Mines | Deemed a non-threat by the Exiles lab entrance 1405 | -9/Mines | Discovered new exit (range 5) 1406 | -9/Mines | Entered Exiles 1410 | -9/Exiles | Discovered new exit (range 15) 1413 | -9/Exiles | Met 8R-AWN 1417 | -9/Exiles | Met EX-HEX 1425 | -9/Exiles | Met EX-BIN 1431 | -9/Exiles | Aligned with FarCom system 1431 | -9/Exiles | Given EX-Vault access code 1440 | -9/Exiles | Opened EX-Vault 1446 | -9/Exiles | Found Prototype Energy Gun 1446 | -9/Exiles | Identified AWS/Thermal 1451 | -9/Exiles | Found Prototype Ballistic Gun 1451 | -9/Exiles | Identified AWS/Gauss 1472 | -9/Exiles | Warned to stay clear of 0b10 Research branches 1479 | -9/Exiles | Met EX-DEC 1492 | -9/Exiles | Discovered new exit (range 12) 1495 | -9/Exiles | Left Exiles lab with AWS/Thermal 1495 | -9/Exiles | Entered Mines 1793 | -8/Mines | Released all parts (6) 1872 | -8/Mines | Discovered new exit (range 9) 1875 | -8/Mines | Entered Materials 1875 | -8/Materials | Evolved 2 slots: Utility x2 1876 | -8/Materials | Identified exit to Factory 1933 | -8/Materials | Self-destructed Last Messages --------------- 01914_ Cesium-ion Thruster destroyed. 01914_ Acquired data core, extracted dynamic key. 01918_ Acquired Hacking Suite. 01919_ Lgt. Ion Engine destroyed. 01921_ Acquired 15 matter. 01923_ Connecting with Terminal... 01923_ Current location identified: Materials >>Inventory(Components) Retrieving component inventory records... Found 1 registered component stockpile: B9E9LOMB20: Lgt. Cannon Downloaded coordinate data. Feedback: System corruption (+1%). 01923_ ALERT: Suspicious activity at Terminal M011. Dispatching Investigation squad. 01924_ Hover Unit destroyed. 01926_ K-01 Serf collects debris. 01928_ System corrupted: Matter fused (-10). 01930_ W-25 Informer sends out distress signal. Map ----- +----------------------------------------------------+ | | | | | | | | | | | | | | | | | | | | | | | | | | | ?????????????????????????????????????????????????? | | ?????????????????????????????????????????????????? | | ?????????????????????????????????????????????????? | | ?????????????????????????????????????????????????? | | ?????????????????????????????????????????????????? | | ?????????????????????????????????????????????????? | | ???????????????????????????????######????????????? | | ???????????????????############# #????????????? | | ???????????????????#!!**!!## # #????????????? | | ???????????????????#!!**!!## # #????????????? | | ???????????????????# ## # +????????????? | | ???????????????????# ## w #????????????? | | ???????????????????# @ # #????????????? | | ???????????????????# # #????????????? | | ???????????????????# r# g #??g?????????? | | ???????????????????# # #????????????? | | ?????????????????### ######????????????? | | ?????????????????#"" T#????????????????? | | ?????????????????#"" ##????????????????? | | ?????????????????#"T r #?????????????????? | | ?????????????????#"" = """ #?????????????????? | | ?????????????????#"" """g #?????????????????? | | ?????????????????### """ #?????????????????? | | ????????????????? """ g #????????????????? | | ???????????????? ! g #????????????????? | | ???????????????##### #????????????????? | | ???????????????????# ! k #????????????????? | | ???????????????????########## #????????????????? | | ????????????????????????????# #????????????????? | | ????????????????????????????# /????????????????? | | ????????????????????????????# #????????????????? | | ????????????????????????????# #????????????????? | | ????????????????????????????# #????????????????? | | ????????????????????????????? #????????????????? | | ????????????????????????????? ?????????????????? | | ????????????????????????????? ?????????????????? | | ?????????????????????????????????????????????????? | +----------------------------------------------------+ Best States ------------- Heat Dissipation 31 Energy Generation 10 Energy Capacity 250 Matter Stores 300 Matter Capacity 600 Sight Range 18 Terrain Scan Range 16 Terrain Scan Density 10 Evasion (%) 64 Recoil Reduction 1 Defensive Hacking 10 Item Schematics ----------------- Datajack | -9/Materials | Scanalyzed Signal Interpreter | -9/Materials | Scanalyzed System Shield | -9/Materials | Scanalyzed Imp. Terrain Scanner | -9/Materials | Scanalyzed Sensor Array | -9/Materials | Scanalyzed Lgt. Ion Engine | -9/Materials | Scanalyzed Robot Schematics ------------------ None Fabricated ------------ Nothing Alien Tech Used ----------------- None Achievements -------------- Cya! Challenges ------------ None Game ------ Seed EnhancedVariableDrive Manual? 0 Play Time 00:45:09 Cumulative 12.1 hours Start 2024.04.07 @ 20:03:21 End 2024.04.07 @ 22:09:06 Sessions 3 Manual Loads 0 Difficulty Rogue Special Mode None Game No. 14 Rogue 12 Adventurer 2 Explorer 0 Win Type - Total 0 Types 0/0/0/0/0/0/0/0/0 Lore% 17 Gallery% 18 Achievement% 15 Wizard Run 0 Options --------- Layout 2 ASCII 0 Keyboard 0 Movement Numpad Keybinds 0 Fullscreen 1 Font 24/Smallcaps Map View 50x44 Zoom Use 0% Tactical HUD 1 Map Filters NONE Filters NONE Steam 1 RUN: b531969a-9b13-4338-971a-d7697855ae5f